Workbook

Sheet Tri croisé
A1: =PropriétésClasseur() -> Classeur G:\_Stat\_Cours perso\Classeurs Excel\02_Les distributions statistiques.xlsm
A2: Enregistré le 04/06/2010 10:40:09
A5: Montant A des achats : Nb n de commandes : | B5: A ≤ 1000 | C5: 1000 < A ≤ 2500 | D5: 2500 < A ≤ 5000 | E5: 5000 < A | F5: Ensemble :
A7: n ≤ 10 | B7: 20 | C7: 45 | D7: 120 | E7: 10 | F7: =SUM(B7:E7) -> 195
A8: 10 < n ≤ 50 | B8: 15 | C8: 60 | D8: 220 | E8: 90 | F8: =SUM(B8:E8) -> 385
A9: 50 < n ≤ 100 | B9: 10 | C9: 35 | D9: 200 | E9: 45 | F9: =SUM(B9:E9) -> 290
A10: 100 < n | B10: 5 | C10: 10 | D10: 110 | E10: 5 | F10: =SUM(B10:E10) -> 130
A11: Ensemble : | B11: =SUM(B7:B10) -> 50 | C11: =SUM(C7:C10) -> 150 | D11: =SUM(D7:D10) -> 650 | E11: =SUM(E7:E10) -> 150 | F11: =SUM(F7:F10) -> 1000
A14: Nb n de commandes : Montant A des achats : | B14: n ≤ 10 | C14: 10 < n ≤ 50 | D14: 50 < n ≤ 100 | E14: 100 < n | F14: Ensemble :
A15: A ≤ 1000 | B15: 20 | C15: 15 | D15: 10 | E15: 5 | F15: =SUM(B15:E15) -> 50
A16: 1000 < A ≤ 2500 | B16: 45 | C16: 60 | D16: 35 | E16: 10 | F16: =SUM(B16:E16) -> 150
A17: 2500 < A ≤ 5000 | B17: 120 | C17: 220 | D17: 200 | E17: 110 | F17: =SUM(B17:E17) -> 650
A18: 5000 < a | B18: 10 | C18: 90 | D18: 45 | E18: 5 | F18: =SUM(B18:E18) -> 150
A19: Ensemble : | B19: =SUM(B15:B18) -> 195 | C19: =SUM(C15:C18) -> 385 | D19: =SUM(D15:D18) -> 290 | E19: =SUM(E15:E18) -> 130 | F19: =SUM(F15:F18) -> 1000
A23: Âge â du client : Montant A des achats : | B23: â ≤ 18 | C23: 18 < â ≤ 25 | D23: 25 < â ≤ 40 | E23: 40 < â | F23: Ensemble :
A25: A ≤ 1000 | B25: 25 | C25: 10 | D25: 10 | E25: 5 | F25: =SUM(B25:E25) -> 50
A26: 1000 < A ≤ 2500 | B26: 40 | C26: 60 | D26: 30 | E26: 20 | F26: =SUM(B26:E26) -> 150
A27: 2500 < A ≤ 5000 | B27: 30 | C27: 150 | D27: 250 | E27: 220 | F27: =SUM(B27:E27) -> 650
A28: 5000 < A | B28: 20 | C28: 70 | D28: 45 | E28: 15 | F28: =SUM(B28:E28) -> 150
A29: Ensemble : | B29: =SUM(B25:B28) -> 115 | C29: =SUM(C25:C28) -> 290 | D29: =SUM(D25:D28) -> 335 | E29: =SUM(E25:E28) -> 260 | F29: =SUM(B29:E29) -> 1000
A32: Montant A des achats : Âge â du client : | B32: A ≤ 1000 | C32: 1000 < A ≤ 2500 | D32: 2500 < A ≤ 5000 | E32: 5000 < A | F32: Ensemble :
A34: â ≤ 18 | B34: 25 | C34: 40 | D34: 30 | E34: 20 | F34: =SUM(B34:E34) -> 115
A35: 18 < â ≤ 25 | B35: 10 | C35: 60 | D35: 150 | E35: 70 | F35: =SUM(B35:E35) -> 290
A36: 25 < â ≤ 40 | B36: 10 | C36: 30 | D36: 250 | E36: 45 | F36: =SUM(B36:E36) -> 335
A37: 40 < â | B37: 5 | C37: 20 | D37: 220 | E37: 15 | F37: =SUM(B37:E37) -> 260
A38: Ensemble : | B38: =SUM(B34:B37) -> 50 | C38: =SUM(C34:C37) -> 150 | D38: =SUM(D34:D37) -> 650 | E38: =SUM(E34:E37) -> 150 | F38: =SUM(F34:F37) -> 1000

Sheet Covariance
A1: =PropriétésClasseur() -> Classeur G:\_Stat\_Cours perso\Classeurs Excel\02_Les distributions statistiques.xls
A2: Enregistré le 13/12/2009 16:28:13
A5: Y1 = | B5: -10 | C5: -9 | D5: -8 | E5: -7 | F5: -6 | G5: -5 | H5: -4 | I5: -3 | J5: -2 | K5: -1 | L5: 0 | M5: 1 | N5: 2 | O5: 3 | P5: 4 | Q5: 5 | R5: 6 | S5: 7 | T5: 8 | U5: 9 | V5: 10
A6: Y2 = | B6: =B5*B5 -> 100 | C6: =C5*C5 -> 81 | D6: 64 | E6: 49 | F6: 36 | G6: 25 | H6: 16 | I6: 9 | J6: 4 | K6: 1 | L6: 0 | M6: 1 | N6: 4 | O6: 9 | P6: 16 | Q6: 25 | R6: 36 | S6: 49 | T6: 64 | U6: 81 | V6: 100
A8: cov(Y1; Y2) = | B8: =COVAR($B$5:$V$5,$B$6:$V$6) -> -0.000000
A9: r(Y1; Y2) = | B9: =CORREL($B$5:$V$5,$B$6:$V$6) -> -0.000000
B11: ordonnée à l'origine = | C11: 10
B12: pente = | C12: 5
A14: Y1 = | B14: -10 | C14: -9 | D14: -8 | E14: -7 | F14: -6 | G14: -5 | H14: -4 | I14: -3 | J14: -2 | K14: -1 | L14: 0 | M14: 1 | N14: 2 | O14: 3 | P14: 4 | Q14: 5 | R14: 6 | S14: 7 | T14: 8 | U14: 9 | V14: 10
A15: Y2 = | B15: =$C$11+$C$12*B14 -> -40 | C15: =$C$11+$C$12*C14 -> -35 | D15: -30 | E15: -25 | F15: -20 | G15: -15 | H15: -10 | I15: -5 | J15: 0 | K15: 5 | L15: 10 | M15: 15 | N15: 20 | O15: 25 | P15: 30 | Q15: 35 | R15: 40 | S15: 45 | T15: 50 | U15: 55 | V15: 60
A17: cov(Y1; Y2) = | B17: =COVAR(B14:V14,B15:V15) -> 183.333333
A18: r(Y1; Y2) = | B18: =CORREL(B14:V14,B15:V15) -> 1.000000
